bitfinex-derivatives/quotes_SOLF0:USTF0_20241230
["timestamp","ask_amount","ask_price","bid_price","bid_amount"]
[1735539258677,2.6085,192.09,192.08,8.40083216]
[1735539259383,8.40083216,192.12,192.06,8.40083216]
[1735539259881,2.6088,192.07,192.06,8.40083216]
[1735539266091,2.6087,192.08,192.06,8.40083216]
[1735539266497,21.84005914,192.21,192.06,8.40083216]
[1735539266692,8.40083216,192.19,192.12,8.40083216]
[1735539266994,23.44455914,192.21,192.14,8.40083216]
[1735539266995,31.8453913,192.21,192.14,8.40083216]
[1735539267191,0.79084273,192.2,192.14,8.40083216]
[1735539267396,31.8453913,192.21,192.16,8.40083216]
[1735539267994,2.6075,192.17,192.16,8.40083216]
[1735539269598,2.6075,192.17,192.14,8.40083216]
[1735539271693,2.6076,192.16,192.14,8.40083216]
[1735539272898,2.6077,192.15,192.14,8.40083216]
[1735539273997,2.6075,192.16,192.14,8.40083216]
[1735539274789,10.00533216,192.21,192.14,8.40083216]
[1735539275098,2.6077,192.15,192.14,8.40083216]
[1735539278096,1.6045,192.21,192.14,8.40083216]
[1735539278395,3.1599,192.23,192.18,8.40083216]
[1735539278396,8.40083216,192.23,192.18,8.40083216]
[1735539278995,2.6071,192.2,192.18,8.40083216]
[1735539279596,2.6071,192.19,192.18,8.40083216]
[1735539279795,8.40083216,192.23,192.17,2.98]
[1735539280598,1.6123,192.26,192.17,2.98]
[1735539280802,2.6073,192.18,192.17,2.98]
[1735539283000,8.40083216,192.21,192.12,2.98]
[1735539283202,8.40083216,192.2,192.12,2.98]
[1735539283397,8.40083216,192.2,192.14,8.40083216]
[1735539283598,2.6075,192.17,192.12,5.588]
[1735539283797,2.6075,192.17,192.14,8.40083216]
[1735539283995,2.6075,192.16,192.14,8.40083216]
[1735539285203,2.6073,192.18,192.14,8.40083216]
[1735539285600,8.40083216,192.22,192.14,8.40083216]
[1735539286407,2.6077,192.15,192.14,8.40083216]
[1735539287207,2.6076,192.16,192.14,8.40083216]
[1735539294712,2.6074,192.17,192.14,8.40083216]
[1735539300210,8.40083216,192.21,192.12,2.98]
[1735539300415,2.6077,192.16,192.13,8.40083216]
[1735539300713,8.40083216,192.19,192.13,11.38083216]
[1735539300918,2.6074,192.17,192.15,8.40083216]
[1735539301211,8.40083216,192.23,192.15,8.40083216]
[1735539301405,8.40083216,192.23,192.17,8.40083216]
[1735539301611,8.40083216,192.23,192.18,2.98]
[1735539302415,2.6071,192.2,192.18,2.98]
[1735539303410,8.40083216,192.23,192.18,2.98]
[1735539303606,2.6071,192.19,192.18,2.98]
[1735539304012,21.84005914,192.26,192.18,2.98]
[1735539304316,21.84005914,192.26,192.21,11.00753216]
[1735539304720,24.44635914,192.26,192.21,11.00753216]
[1735539304920,21.84005914,192.26,192.21,11.00753216]
[1735539305912,21.84005914,192.26,192.23,8.40083216]
[1735539306109,1.4947,192.29,192.23,11.38083216]
[1735539306515,2.6059,192.28,192.25,8.40083216]
[1735539306715,8.40083216,192.3,192.25,8.40083216]
[1735539307116,2.6058,192.29,192.25,8.40083216]
[1735539309020,4.095,192.31,192.25,11.00703216]
[1735539310015,4.095,192.31,192.26,2.6061]
[1735539311017,11.00623216,192.32,192.27,11.00683216]
[1735539311219,2.6054,192.32,192.28,2.98]
[1735539312423,1.5502,192.37,192.29,8.40083216]
[1735539312622,9.95103216,192.37,192.31,8.40083216]
[1735539312819,8.40083216,192.4,192.33,8.40083216]
[1735539313023,21.84005914,192.42,192.35,8.40083216]
[1735539313318,2.6043,192.41,192.37,8.40083216]
[1735539314419,30.2408913,192.42,192.36,8.40083216]
[1735539314625,30.2408913,192.42,192.34,8.40083216]
[1735539314626,2.6046,192.38,192.34,8.40083216]
[1735539314918,2.6046,192.38,192.35,2.98]
[1735539315325,2.6044,192.39,192.35,2.98]
[1735539315526,2.6044,192.39,192.34,8.40083216]
[1735539315727,2.6044,192.39,192.35,2.98]
[1735539317327,2.6044,192.39,192.36,8.40083216]
[1735539317828,2.6043,192.4,192.36,8.40083216]
[1735539318031,8.40083216,192.42,192.36,8.40083216]
[1735539319028,8.40083216,192.42,192.35,2.98]
[1735539319029,9.86683216,192.46,192.4,8.40083216]
[1735539319333,161.34749532,192.55,192.42,8.40083216]
[1735539319334,8.40083216,192.48,192.42,8.40083216]
[1735539319934,2.6035,192.46,192.42,8.40083216]
[1735539320432,2.603,192.49,192.44,8.40083216]
[1735539320731,1.5501,192.54,192.46,8.40083216]
[1735539320732,8.40083216,192.53,192.46,8.40083216]
[1735539320926,8.40083216,192.53,192.47,2.98]
[1735539321132,2.6027,192.51,192.47,2.98]
[1735539321527,8.40083216,192.53,192.48,8.40083216]
[1735539321528,2.6024,192.53,192.48,8.40083216]
[1735539321728,2.6024,192.53,192.5,8.40083216]
[1735539322334,9.92003216,192.59,192.52,8.40083216]
[1735539322530,8.40083216,192.59,192.53,2.98]
[1735539323136,2.6019,192.58,192.53,2.98]
[1735539323338,3.0727,192.65,192.56,8.40083216]
[1735539323528,2.6013,192.62,192.56,8.40083216]
[1735539323731,1.5192,192.65,192.56,8.40083216]
[1735539323935,8.40083216,192.64,192.58,8.40083216]
[1735539324235,8.40083216,192.64,192.59,2.98]
[1735539324534,1.5284,192.69,192.59,2.98]
[1735539324734,8.40083216,192.67,192.6,8.40083216]
[1735539324939,2.6011,192.63,192.6,8.40083216]
[1735539325135,8.40083216,192.67,192.6,8.40083216]
[1735539325435,1.5284,192.69,192.59,2.98]
[1735539325436,1.5284,192.69,192.62,8.40083216]
[1735539325641,8.40083216,192.68,192.62,8.40083216]
[1735539326138,100.33126079,192.89,192.62,8.40083216]
[1735539326336,8.40083216,192.75,192.68,8.40083216]
[1735539326636,8.40083216,192.75,192.69,2.98]
[1735539326833,2.5999,192.72,192.69,2.98]
[1735539327038,8.40083216,192.75,192.69,2.98]
[1735539327640,1.5901,192.8,192.7,2.98]
[1735539327832,8.40083216,192.72,192.7,2.98]
[1735539328341,12.96109045,192.75,192.7,2.98]
[1735539328541,12.96109045,192.75,192.62,12.96109045]
[1735539328742,12.96109045,192.72,192.63,2.98]
[1735539328941,1.4958,192.71,192.63,2.98]
[1735539329141,2.6008,192.65,192.63,2.98]
[1735539329336,2.6008,192.65,192.59,12.96109045]
[1735539329543,1.4958,192.71,192.59,15.94109045]
[1735539329544,12.96109045,192.69,192.59,15.94109045]
[1735539329842,2.6011,192.63,192.59,15.94109045]
[1735539330243,1.5436,192.7,192.59,15.94109045]
[1735539330839,2.6011,192.63,192.59,15.94109045]
[1735539331643,2.6013,192.62,192.59,15.94109045]
[1735539331939,1.5436,192.7,192.59,15.94109045]
[1735539333640,2.6009,192.65,192.59,15.94109045]
[1735539334337,12.96109045,192.69,192.59,15.94109045]
[1735539334538,12.96109045,192.69,192.56,12.96109045]
[1735539334736,12.96109045,192.69,192.57,2.98]
[1735539335137,12.96109045,192.69,192.59,12.96109045]
[1735539335641,2.6008,192.66,192.59,15.56259045]
[1735539336036,1.5436,192.7,192.59,15.56259045]
[1735539336239,2.6007,192.66,192.6,2.6015]
[1735539336639,4.4758,192.71,192.59,12.96109045]
[1735539336840,2.6005,192.67,192.59,12.96109045]
[1735539337036,1.4958,192.71,192.62,12.96109045]
[1735539337242,1.4958,192.71,192.63,2.96]
[1735539337440,2.6005,192.67,192.63,2.96]
[1735539338243,1.4958,192.71,192.63,2.96]
[1735539338646,1.5458,192.74,192.63,4.4821]
[1735539339140,12.96109045,192.75,192.63,4.4821]
[1735539339340,14.49809045,192.78,192.65,12.96109045]
[1735539339842,14.49809045,192.78,192.66,2.6006]
[1735539340044,14.49809045,192.78,192.65,12.96109045]
[1735539340242,2.5997,192.73,192.67,2.6005]
[1735539340440,2.5997,192.73,192.68,2.96]
[1735539341245,2.5998,192.73,192.68,2.96]
[1735539341441,12.96109045,192.75,192.64,3.0]
[1735539341747,15.96109045,192.75,192.64,3.0]
[1735539342443,2.6005,192.67,192.64,3.0]
[1735539343443,3.0,192.75,192.64,3.0]
[1735539343841,12.96109045,192.74,192.64,3.0]
[1735539346249,2.6007,192.65,192.64,3.0]
[1735539346446,2.6007,192.65,192.6,3.0]
[1735539346947,2.6007,192.65,192.59,15.56249045]
[1735539347149,1.5354,192.73,192.62,12.96109045]
[1735539347448,1.5354,192.73,192.63,3.0]
[1735539347844,2.6001,192.7,192.64,2.6009]
[1735539348044,1.5354,192.73,192.64,2.6009]
[1735539348244,12.96109045,192.77,192.63,3.0]
[1735539348450,12.96109045,192.77,192.64,1.4917]
[1735539348844,2.5997,192.74,192.64,4.0925]
[1735539349044,12.96109045,192.77,192.65,12.96109045]
[1735539350155,12.96109045,192.7,192.58,12.96109045]
[1735539350447,2.6004,192.69,192.63,2.601]
[1735539350653,2.6004,192.69,192.62,1.4917]
[1735539351653,12.96109045,192.75,192.63,2.6011]
[1735539351654,2.6004,192.68,192.63,2.6011]
[1735539351852,2.6004,192.68,192.64,3.0]
[1735539354349,2.6007,192.67,192.62,1.4917]
[1735539354555,12.96109045,192.72,192.6,3.0]
[1735539355255,2.6008,192.66,192.6,5.6014]
[1735539355549,2.6008,192.66,192.6,3.0]
[1735539355955,2.6008,192.66,192.61,2.6013]
[1735539357054,2.6009,192.65,192.61,2.6013]
[1735539357954,12.96109045,192.72,192.6,3.0]
[1735539357955,2.6007,192.67,192.6,3.0]
[1735539358159,2.6007,192.67,192.62,2.6012]
[1735539358548,2.6007,192.66,192.62,2.6012]
[1735539358955,2.5998,192.73,192.66,2.6007]
[1735539359258,12.96109045,192.75,192.66,5.6007]
[1735539360358,8.29421286,192.73,192.66,5.6007]
[1735539360579,2.6001,192.71,192.66,5.6007]
[1735539360768,1.537,192.78,192.67,8.29421286]
[1735539361060,8.29421286,192.77,192.69,8.29421286]
[1735539361456,8.29421286,192.77,192.68,2.6004]
[1735539361650,8.29421286,192.77,192.69,4.7844058]
[1735539361959,8.29421286,192.75,192.68,10.89461286]
[1735539362362,14.49393364,192.78,192.68,2.6004]
[1735539362558,2.5998,192.73,192.68,2.6004]
[1735539363057,2.5998,192.73,192.69,4.79087977]
[1735539363456,2.5998,192.73,192.68,2.6004]
[1735539364058,2.5999,192.72,192.67,5.6804]
[1735539364262,14.49393364,192.78,192.68,4.79963697]
[1735539364460,12.95693364,192.75,192.68,4.79963697]
[1735539364656,12.95693364,192.75,192.67,1.5738]
[1735539364964,12.95693364,192.75,192.62,12.95693364]
[1735539365158,2.6007,192.66,192.63,6.97585291]
[1735539365358,12.95693364,192.72,192.64,3.97585291]
[1735539365561,2.6006,192.68,192.65,3.97585291]
[1735539365864,2.6006,192.68,192.66,3.98226042]
[1735539366052,2.6006,192.68,192.67,4.8090995]
[1735539366256,12.95693364,192.72,192.67,4.8090995]
[1735539366457,2.6003,192.69,192.67,4.8090995]
[1735539366765,2.6003,192.69,192.68,4.8090995]
[1735539367863,2.6003,192.69,192.68,8.80039446]
[1735539368464,2.6003,192.69,192.68,4.8090995]
[1735539372264,2.6003,192.69,192.68,8.80849564]
[1735539372460,2.6003,192.69,192.68,8.80874388]
[1735539372657,23.37705914,192.78,192.68,7.9890995]
[1735539372862,12.95693364,192.77,192.69,4.8090995]
[1735539373263,12.95693364,192.77,192.68,3.18]
[1735539373264,12.95693364,192.77,192.7,4.8090995]
[1735539373462,12.95693364,192.77,192.68,3.18]
[1735539373666,12.95693364,192.77,192.69,3.99804103]
[1735539373860,12.95693364,192.77,192.69,4.83448622]
[1735539374064,12.95693364,192.77,192.7,8.83158435]
[1735539374264,12.95693364,192.77,192.71,3.99709813]
[1735539374464,12.95693364,192.77,192.71,4.83448622]
[1735539374765,2.5994,192.76,192.72,4.83448622]
[1735539374965,12.95693364,192.77,192.72,4.83448622]
[1735539375159,12.95693364,192.77,192.68,3.18]
[1735539375360,12.95693364,192.77,192.69,3.99508107]
[1735539375570,2.6,192.72,192.7,8.82664793]
[1735539375770,2.6,192.72,192.7,4.83156686]
[1735539375967,2.6,192.72,192.71,4.83156686]
[1735539376765,2.6001,192.71,192.68,3.18]
[1735539376971,2.6001,192.71,192.69,8.82688531]
[1735539377168,2.6001,192.71,192.68,3.18]
[1735539377169,2.6001,192.71,192.7,4.83140211]
[1735539377962,2.6009,192.65,192.63,3.18]
[1735539378167,2.6009,192.65,192.64,8.83183257]
[1735539378770,2.6009,192.65,192.64,4.83410417]
[1735539379069,2.6007,192.66,192.64,4.83410417]
[1735539379270,2.6007,192.66,192.65,3.99994182]
[1735539379469,2.6007,192.66,192.65,8.83404599]
[1735539380878,2.6007,192.66,192.65,4.83410417]
[1735539381677,2.601,192.64,192.63,3.18]
[1735539382075,2.601,192.64,192.63,8.02531146]
[1735539382772,2.601,192.64,192.63,12.03308471]
[1735539383775,2.601,192.64,192.63,8.02531146]
[1735539385181,2.601,192.64,192.63,3.18]
[1735539385881,8.29899786,192.65,192.57,8.29899786]
[1735539386076,8.29899786,192.63,192.58,4.00711456]
[1735539386279,12.97319257,192.65,192.58,4.84671029]
[1735539386478,12.97319257,192.65,192.59,4.84671029]
[1735539386982,12.97319257,192.65,192.53,12.97319257]
[1735539387172,3.18,192.68,192.54,12.03521406]
[1735539387173,12.97319257,192.62,192.54,12.03521406]
[1735539387384,12.97319257,192.62,192.55,4.00826182]
[1735539387385,1.5716,192.61,192.55,4.00826182]
[1735539387577,1.5716,192.61,192.55,4.84695224]
[1735539387774,12.97319257,192.65,192.56,8.85378992]
[1735539388084,1.5551,192.67,192.57,8.85378992]
[1735539388380,1.5551,192.67,192.58,4.00683768]
[1735539388576,2.6014,192.61,192.59,8.02695224]
[1735539388774,2.6014,192.61,192.59,3.18]
[1735539389580,2.601,192.64,192.59,3.18]
[1735539389878,1.5551,192.67,192.6,4.84230551]
[1735539390278,2.601,192.65,192.6,2.6014]
[1735539391178,1.5551,192.67,192.61,4.84190467]
[1735539391179,2.6008,192.66,192.61,4.84190467]
[1735539391480,1.5551,192.67,192.6,2.6014]
[1735539391781,1.5551,192.67,192.61,4.00286391]
[1735539392081,1.5551,192.67,192.62,4.84059974]
[1735539392476,1.5551,192.67,192.59,3.18]
[1735539392677,1.5551,192.67,192.6,8.84415081]
[1735539392873,2.6009,192.65,192.6,4.8409517]
[1735539393279,2.6009,192.65,192.61,4.8409517]
[1735539393480,2.6009,192.65,192.59,3.18]
[1735539393680,2.6009,192.65,192.6,4.00389116]
[1735539393882,2.6009,192.65,192.59,3.18]
[1735539394087,1.5551,192.67,192.56,12.97319257]
[1735539394088,2.6014,192.62,192.56,12.97319257]
[1735539394284,12.97319257,192.65,192.57,8.8482647]
[1735539394487,1.6162,192.64,192.57,4.84329357]
[1735539394787,2.6013,192.62,192.52,3.18]
[1735539394992,2.6013,192.62,192.53,16.9793511]
[1735539395190,2.6013,192.62,192.54,4.00615853]
[1735539395390,2.6013,192.62,192.55,4.00615853]
[1735539395590,2.6013,192.62,192.54,4.84375686]
[1735539395787,2.6014,192.61,192.56,4.84375686]
[1735539396188,2.6014,192.61,192.55,2.6022]
[1735539396491,2.6016,192.6,192.54,2.6023]
[1735539396687,1.6162,192.64,192.55,4.00418239]
[1735539396888,1.6162,192.64,192.56,4.00330972]
[1735539397189,1.5551,192.67,192.57,12.02364874]
[1735539397389,23.39125914,192.71,192.59,12.97319257]
[1735539397597,23.39125914,192.71,192.62,12.97319257]
[1735539397896,23.39125914,192.71,192.63,12.02364874]
[1735539397897,21.84005914,192.71,192.63,12.02364874]
[1735539398197,1.5366,192.72,192.64,8.8386186]
[1735539398398,1.5366,192.72,192.65,8.83808506]
[1735539398595,1.5366,192.72,192.66,3.99711903]
[1735539398792,1.5512,192.76,192.66,4.84096603]
[1735539399095,12.97319257,192.78,192.67,8.83650558]
[1735539399299,12.97319257,192.78,192.73,2.5998]
[1735539399499,1.5366,192.79,192.73,2.5998]
[1735539399796,1.5366,192.79,192.68,16.15319257]
[1735539399995,1.5366,192.79,192.69,3.99216239]
[1735539400197,1.5366,192.79,192.7,4.82739661]
[1735539400495,1.5366,192.79,192.68,16.15319257]
[1735539400698,1.5366,192.79,192.69,3.99072873]
[1735539400902,1.5366,192.79,192.69,4.82568412]
[1735539401099,1.5366,192.79,192.7,4.82568412]
[1735539401401,2.5993,192.77,192.71,2.6]
[1735539403799,1.5366,192.79,192.71,2.6]
[1735539404004,2.5993,192.76,192.71,2.6]
[1735539404199,1.5366,192.79,192.74,2.5995]
[1735539405400,4.1498,192.82,192.74,3.22]
[1735539405601,1.5512,192.82,192.74,3.22]
[1735539406110,2.5981,192.85,192.74,16.19319257]
[1735539406404,2.5988,192.8,192.74,2.5994]
[1735539406601,1.5889,192.86,192.75,3.22]
[1735539406795,1.5889,192.86,192.76,3.22]
[1735539407001,2.5985,192.83,192.77,2.5992]
[1735539407202,12.97319257,192.85,192.76,3.22]
[1735539407501,1.5889,192.86,192.76,3.22]
[1735539408003,1.5889,192.86,192.76,4.6817]
[1735539408205,23.49196804,192.88,192.78,12.97319257]
[1735539409003,23.49196804,192.88,192.82,2.5985]
[1735539409208,20.89416804,192.88,192.78,12.97319257]
[1735539409507,2.598,192.86,192.8,2.5987]
[1735539410804,2.5979,192.87,192.81,2.5987]
[1735539411005,20.89416804,192.88,192.81,2.5987]
[1735539411201,20.89416804,192.88,192.78,12.97319257]
[1735539411509,2.5979,192.87,192.81,2.5986]
[1735539411701,2.5979,192.87,192.82,3.2]
[1735539413311,2.5982,192.85,192.82,3.2]
[1735539413811,2.598,192.86,192.82,3.2]
[1735539414109,20.89416804,192.88,192.82,3.2]
[1735539414913,33.86736061,192.88,192.82,3.2]
[1735539415612,2.598,192.86,192.82,3.2]
[1735539416005,33.86736061,192.88,192.82,3.2]
[1735539416213,2.5981,192.86,192.82,3.2]
[1735539416408,33.86736061,192.88,192.82,3.2]
[1735539416603,2.5984,192.83,192.82,3.2]
[1735539416807,2.5984,192.83,192.78,3.2]
[1735539417613,2.5982,192.85,192.78,3.2]
[1735539417811,2.5982,192.85,192.78,16.17319257]
[1735539418511,2.5982,192.85,192.8,2.5988]
[1735539420217,20.89416804,192.88,192.78,16.17319257]
[1735539420413,2.598,192.87,192.81,12.97319257]
[1735539420814,20.89416804,192.88,192.81,12.97319257]
[1735539421008,20.89416804,192.88,192.84,2.5982]
[1735539421211,20.89416804,192.88,192.84,5.7982]
[1735539422218,23.49196804,192.88,192.84,18.77139257]
[1735539422814,2.598,192.87,192.84,3.2]
[1735539423414,20.89416804,192.88,192.84,3.2]
[1735539423622,20.89416804,192.88,192.8,3.2]
[1735539423924,2.5987,192.81,192.8,3.2]
[1735539424425,1.5517,192.87,192.74,16.17319257]
[1735539424618,3.1064,192.87,192.74,16.17319257]
[1735539424817,12.97319257,192.85,192.74,16.17319257]
[1735539425017,12.97319257,192.85,192.74,3.2]
[1735539425217,12.97319257,192.82,192.71,16.06299257]
[1735539425419,12.97319257,192.82,192.72,3.2]
[1735539426120,12.97319257,192.85,192.74,12.97319257]
[1735539426420,4.7353,192.86,192.74,12.97319257]
[1735539426623,1.5353,192.86,192.74,12.97319257]
[1735539426825,3.1064,192.87,192.77,12.97319257]
[1735539427015,3.1064,192.87,192.78,3.2]
[1735539427215,3.1064,192.87,192.81,2.5986]
[1735539427216,2.598,192.87,192.81,2.5986]
[1735539427630,20.89416804,192.88,192.81,2.5986]
[1735539428452,2.598,192.86,192.81,2.5986]
[1735539428645,20.89416804,192.88,192.82,2.5984]
[1735539430623,23.49196804,192.88,192.82,2.5984]
[1735539431832,23.49196804,192.88,192.83,2.5983]
[1735539432035,23.49196804,192.88,192.84,3.2]
[1735539432231,2.5981,192.85,192.84,3.2]
[1735539433633,2.5977,192.87,192.84,3.2]
[1735539433829,20.89416804,192.88,192.84,3.2]
[1735539434235,2.598,192.85,192.84,3.2]
[1735539434627,33.86736061,192.88,192.79,4.6833]
[1735539434826,33.86736061,192.88,192.79,3.18]
[1735539435431,2.5986,192.81,192.79,3.18]
[1735539436230,2.5989,192.79,192.72,12.97319257]
[1735539436430,2.5989,192.79,192.73,3.18]
[1735539437033,2.5989,192.79,192.74,2.5995]
[1735539437528,2.5989,192.79,192.75,2.5994]
[1735539437731,12.97319257,192.85,192.73,3.18]
[1735539437935,12.97319257,192.85,192.74,3.18]
[1735539438534,12.97319257,192.85,192.75,3.18]
[1735539440434,2.5988,192.8,192.75,5.7794]
[1735539441340,2.5988,192.8,192.75,3.18]
[1735539441633,3.1264,192.86,192.75,16.15319257]
[1735539441834,20.89416804,192.88,192.78,12.97319257]
[1735539442039,2.598,192.87,192.78,12.97319257]
[1735539442238,2.598,192.87,192.79,10.29873757]
[1735539442434,2.598,192.87,192.8,3.18]
[1735539442634,2.5981,192.86,192.82,2.5985]
[1735539443240,2.5981,192.86,192.81,2.5987]
[1735539443439,2.5982,192.85,192.81,2.5987]
[1735539445242,20.89416804,192.88,192.84,2.5983]
[1735539445434,20.89416804,192.88,192.85,3.18]
[1735539446031,23.49196804,192.88,192.85,3.18]
[1735539446542,20.89416804,192.88,192.85,3.18]
[1735539446736,20.89416804,192.88,192.87,2.5979]
[1735539448239,20.89416804,192.88,192.87,24.34237945]
[1735539448240,2.18162142,192.88,192.87,24.34237945]
[1735539448435,0.49782142,192.88,192.87,24.34237945]
[1735539450244,0.49782142,192.88,192.87,11.36918688]
[1735539450546,0.49782142,192.88,192.87,24.34237945]
[1735539453046,0.49782142,192.88,192.87,24.33624942]
[1735539453445,0.49782142,192.88,192.87,20.3722635]
[1735539454644,0.49782142,192.88,192.87,7.39907093]
[1735539454945,0.49782142,192.88,192.87,20.3722635]
[1735539455344,0.49782142,192.88,192.87,15.57109257]
[1735539456148,0.49782142,192.88,192.87,20.36319775]
[1735539456342,0.49782142,192.88,192.87,15.57109257]
[1735539457745,1.5859,192.98,192.87,17.76470554]
[1735539457947,1.5859,192.98,192.87,12.97319257]
[1735539458247,2.5968,192.96,192.91,2.5972]
[1735539458437,2.5968,192.96,192.92,3.18]
[1735539458842,1.5859,192.98,192.92,3.18]
[1735539459043,2.5968,192.95,192.92,3.18]
[1735539459742,1.5859,192.98,192.92,3.18]
[1735539459943,1.5859,192.98,192.92,5.7772]
[1735539460547,2.5968,192.96,192.92,3.18]
[1735539460748,1.5859,192.98,192.87,12.97319257]
[1735539460948,1.5859,192.98,192.88,3.18]
[1735539461150,2.5969,192.95,192.9,2.5975]
[1735539461348,14.55909257,192.98,192.88,3.18]
[1735539462052,2.5968,192.95,192.88,5.7777]
[1735539462344,14.55909257,192.98,192.88,2.5977]
[1735539462651,14.55909257,192.98,192.89,3.24]
[1735539463650,2.5972,192.93,192.89,3.24]
[1735539464144,12.97319257,192.95,192.86,3.24]
[1735539464345,1.4879,192.92,192.85,3.24]
[1735539464541,2.5978,192.88,192.85,3.24]
[1735539465343,1.5697,192.9,192.81,12.97319257]
[1735539465654,1.5697,192.9,192.82,3.24]
[1735539466158,2.5982,192.85,192.82,3.24]
[1735539466454,12.97319257,192.89,192.78,12.97319257]
[1735539466649,1.5357,192.84,192.78,16.21319257]
[1735539466949,1.5357,192.84,192.78,3.24]
[1735539466950,2.5986,192.82,192.78,3.24]
[1735539467149,2.5986,192.82,192.76,2.5992]
[1735539467353,1.5357,192.84,192.78,3.24]
[1735539467549,4.156,192.83,192.78,3.24]
[1735539468754,1.5574,192.83,192.78,3.24]
[1735539468955,2.5986,192.82,192.78,5.839]
[1735539469155,1.5574,192.83,192.78,3.24]
[1735539469450,2.5988,192.81,192.78,3.24]
[1735539469659,1.5574,192.83,192.78,3.24]
[1735539470256,1.5574,192.83,192.78,5.8391]
[1735539471258,1.5574,192.83,192.78,3.24]
[1735539471456,14.53059257,192.83,192.72,2.39933358]
[1735539471658,1.5404,192.82,192.72,5.63933358]
[1735539471858,2.5992,192.78,192.72,8.23923358]
[1735539472456,2.5989,192.8,192.72,5.63933358]
[1735539472656,1.5404,192.82,192.72,5.63933358]
[1735539473062,2.5987,192.81,192.75,2.5994]
[1735539473265,1.5404,192.82,192.75,2.5994]
[1735539473863,1.5404,192.82,192.73,12.97319257]
[1735539474760,2.5988,192.8,192.75,2.5995]
[1735539474960,1.5404,192.82,192.73,12.97319257]
[1735539475964,1.5404,192.82,192.72,2.39933358]
[1735539476162,1.5404,192.82,192.72,5.63933358]
[1735539476362,2.5994,192.76,192.72,5.63933358]
[1735539476665,1.5404,192.82,192.72,5.63933358]
[1735539476860,2.5992,192.77,192.73,2.5998]
[1735539477065,2.5992,192.77,192.72,5.63933358]
[1735539477566,2.5994,192.76,192.72,5.63933358]
[1735539478764,2.5995,192.75,192.72,5.63933358]
[1735539480071,2.5995,192.75,192.72,3.24]
[1735539480370,2.5995,192.75,192.73,3.24]
[1735539482474,1.5404,192.82,192.73,3.24]
[1735539483370,1.5404,192.82,192.75,12.97319257]
[1735539483765,1.5404,192.82,192.8,2.5988]
[1735539483969,1.5404,192.82,192.8,5.8388]
[1735539484371,1.5357,192.84,192.82,2.5985]
[1735539484568,1.5891,192.87,192.81,8.28220387]
[1735539484767,1.5891,192.87,192.83,8.28220387]
[1735539486275,1.5891,192.87,192.8,16.17636956]
[1735539486474,4.187,192.87,192.81,2.5986]
[1735539486675,4.187,192.87,192.8,16.17636956]
[1735539487277,4.187,192.87,192.82,2.5984]
[1735539488975,1.5891,192.87,192.77,12.93636956]
[1735539489174,1.5891,192.87,192.78,3.24]
[1735539490172,2.5984,192.84,192.79,2.5989]
[1735539490677,2.5984,192.84,192.8,3.24]
[1735539492382,2.5984,192.84,192.8,5.8388]
[1735539492776,1.5891,192.87,192.8,3.24]
[1735539492976,2.5982,192.85,192.81,2.5986]
[1735539493677,1.5891,192.87,192.81,2.5986]
[1735539493977,2.598,192.86,192.81,2.5986]
[1735539494683,1.5891,192.87,192.81,2.5986]
[1735539494877,2.5982,192.85,192.81,2.5986]
[1735539496378,1.5891,192.87,192.8,3.24]
[1735539496585,1.5891,192.87,192.8,16.17636956]
[1735539497178,1.5891,192.87,192.86,2.598]
[1735539502086,2.5975,192.9,192.86,2.598]
[1735539503483,1.5255,192.91,192.88,2.5976]
[1735539504776,4.1686,192.92,192.88,2.5976]
[1735539505688,2.5975,192.91,192.87,2.5979]
[1735539505888,1.5713,192.92,192.85,3.22]
[1735539507288,2.5975,192.9,192.86,2.598]
[1735539511890,2.5976,192.89,192.86,2.598]
[1735539515596,2.5974,192.91,192.87,8.27795112]
[1735539516387,2.5974,192.91,192.88,2.5978]
[1735539516892,2.5974,192.91,192.87,8.27795112]